bitfinex/quotes_SOLUSD_20220311
["timestamp","ask_amount","ask_price","bid_price","bid_amount"]
[1646996065840,48.26424281,81.908,81.871,32.33104809]
[1646996066042,23.7337,81.909,81.871,32.33104809]
[1646996069965,6.105,81.922,81.871,32.33104809]
[1646996070164,29.6044,81.929,81.872,24.642]
[1646996070564,23.4994,81.929,81.872,24.642]
[1646996070968,74.43264728,81.929,81.872,24.642]
[1646996071163,74.43264728,81.929,81.88,18.3079]
[1646996071563,74.43264728,81.929,81.881,24.642]
[1646996072563,23.4994,81.929,81.881,24.642]
[1646996073666,51.99118978,81.928,81.881,24.642]
[1646996080580,58.09518978,81.928,81.881,24.642]
[1646996082083,122.1,81.927,81.871,32.33104809]
[1646996082281,128.205,81.926,81.872,24.2344]
[1646996083283,128.205,81.926,81.852,24.558]
[1646996083484,128.205,81.926,81.853,24.2344]
[1646996083683,122.1,81.919,81.853,24.2344]
[1646996083886,17.56,81.91,81.853,24.2344]
[1646996084083,18.0582489,81.908,81.854,55.61485723]
[1646996084283,6.106,81.907,81.854,55.61485723]
[1646996087585,18.0582489,81.908,81.86,18.3117]
[1646996091498,6.106,81.907,81.854,55.61485723]
[1646996091699,6.106,81.908,81.87,18.3099]
[1646996091895,23.7677,81.909,81.87,18.3099]
[1646996092096,6.105,81.927,81.87,18.3099]
[1646996092297,23.1286,81.926,81.871,22.9103]
[1646996092502,53.84503927,81.925,81.872,32.75570407]
[1646996094202,53.84503927,81.925,81.871,22.9103]
[1646996094402,17.56,81.92,81.871,22.9103]
[1646996095316,17.56,81.92,81.872,61.33162184]
[1646996096323,17.56,81.92,81.871,22.9103]
[1646996096523,24.18,81.92,81.871,22.9103]
[1646996098927,6.105,81.919,81.871,22.9103]
[1646996102733,6.105,81.919,81.872,58.10204931]
[1646996105339,6.105,81.919,81.871,22.9103]
[1646996105544,13.015,81.919,81.871,22.9103]
[1646996105939,142.85965301,81.91,81.871,22.9103]
[1646996106141,24.3201,81.909,81.871,22.9103]
[1646996106339,40.52449941,81.909,81.871,22.9103]
[1646996106577,40.52449941,81.909,81.842,3.04447957]
[1646996106741,6.106,81.908,81.832,23.5275]
[1646996107342,6.106,81.908,81.853,60.40056291]
[1646996108341,122.1,81.907,81.832,23.5275]
[1646996108540,128.206,81.906,81.832,23.5275]
[1646996109344,128.206,81.906,81.849,61.74447077]
[1646996109945,6.106,81.906,81.849,61.74447077]
[1646996110143,6.106,81.907,81.85,23.3674]
[1646996110544,6.106,81.908,81.85,23.3674]
[1646996111747,122.1,81.907,81.85,23.3674]
[1646996111944,128.206,81.906,81.85,23.3674]
[1646996114548,6.106,81.906,81.85,23.3674]
[1646996114749,6.106,81.908,81.85,23.3674]
[1646996116250,122.1,81.907,81.85,23.3674]
[1646996116451,128.206,81.906,81.85,23.3674]
[1646996116852,6.106,81.906,81.85,23.3674]
[1646996117350,6.106,81.908,81.85,23.3674]
[1646996135507,6.106,81.908,81.853,53.40330952]
[1646996137708,6.106,81.908,81.85,23.3674]
[1646996138411,122.1,81.907,81.85,23.3674]
[1646996138613,128.206,81.906,81.85,23.3674]
[1646996141844,132.946,81.906,81.85,23.3674]
[1646996143644,128.206,81.906,81.85,23.3674]
[1646996144243,6.106,81.906,81.85,23.3674]
[1646996144450,6.106,81.908,81.85,56.34508556]
[1646996145645,122.1,81.907,81.85,56.34508556]
[1646996145845,6.106,81.906,81.85,23.3674]
[1646996146044,40.52449941,81.909,81.85,23.3674]
[1646996146045,6.106,81.908,81.85,23.3674]
[1646996146854,6.106,81.908,81.853,52.69625343]
[1646996147054,40.52449941,81.909,81.853,52.69625343]
[1646996150852,6.106,81.908,81.853,52.69625343]
[1646996151154,40.52449941,81.909,81.853,52.69625343]
[1646996151352,16.20439941,81.909,81.854,3.04447957]
[1646996151752,16.20439941,81.909,81.854,26.61277226]
[1646996151953,16.20439941,81.909,81.855,14.47907148]
[1646996152153,16.20439941,81.909,81.855,17.52355105]
[1646996152354,16.20439941,81.909,81.856,3.04447957]
[1646996152758,16.20439941,81.909,81.87,18.3095]
[1646996152957,16.20439941,81.909,81.871,35.67430787]
[1646996156965,16.20439941,81.909,81.861,24.6963]
[1646996157160,23.8554,81.908,81.861,24.6963]
[1646996160563,6.106,81.907,81.861,24.6963]
[1646996162867,23.8554,81.908,81.861,24.6963]
[1646996166070,29.9614,81.908,81.861,24.6963]
[1646996167702,23.8554,81.908,81.861,24.6963]
[1646996168604,29.9614,81.908,81.861,24.6963]
[1646996169805,23.8554,81.908,81.861,24.6963]
[1646996173405,6.106,81.907,81.861,24.6963]
[1646996176408,23.8554,81.908,81.861,24.6963]
[1646996181512,6.106,81.931,81.861,24.6963]
[1646996181716,30.7835,81.927,81.861,24.6963]
[1646996181919,30.7835,81.927,81.862,14.4830401]
[1646996182516,62.31652335,81.926,81.862,14.4830401]
[1646996183820,6.105,81.925,81.862,14.4830401]
[1646996184022,62.31652335,81.926,81.863,3.04447957]
[1646996184423,62.31652335,81.926,81.864,14.4830401]
[1646996185223,62.31652335,81.926,81.88,18.307]
[1646996185452,62.31652335,81.926,81.882,32.28678729]
[1646996190156,24.6785,81.927,81.882,32.28678729]
[1646996190356,24.6785,81.927,81.89,18.3052]
[1646996196869,6.104,81.949,81.882,32.28678729]
[1646996197069,22.6908,81.948,81.9,18.3029]
[1646996197270,6.103,81.947,81.901,23.2626]
[1646996198269,31.46427654,81.947,81.901,23.2626]
[1646996199669,6.103,81.947,81.901,23.2626]
[1646996199870,6.103,81.947,81.89,18.3053]
[1646996200070,6.103,81.947,81.891,23.2626]
[1646996205575,25.36127654,81.946,81.891,23.2626]
[1646996205875,6.103,81.945,81.891,23.2626]
[1646996206278,25.36127654,81.944,81.891,23.2626]
[1646996206476,6.103,81.943,81.891,23.2626]
[1646996206778,31.46427654,81.943,81.891,23.2626]
[1646996220612,17.56,81.94,81.891,23.2626]
[1646996220812,6.103,81.939,81.891,23.2626]
[1646996221013,29.5812,81.939,81.891,23.2626]
[1646996221413,122.1,81.937,81.882,32.28678729]
[1646996221715,128.204,81.936,81.882,32.28678729]
[1646996221912,153.56527654,81.936,81.882,32.28678729]
[1646996222112,25.36127654,81.935,81.882,32.28678729]
[1646996222312,6.104,81.934,81.882,32.28678729]
[1646996222511,17.56,81.93,81.882,32.28678729]
[1646996222913,23.4782,81.929,81.882,32.28678729]
[1646996223312,29.5822,81.929,81.882,32.28678729]
[1646996226515,29.5822,81.929,81.883,22.5963]
[1646996227315,23.4782,81.929,81.883,22.5963]
[1646996230727,6.104,81.928,81.883,22.5963]
[1646996231932,23.4782,81.929,81.883,22.5963]
[1646996232130,23.4782,81.929,81.883,27.6663]
[1646996232527,6.104,81.95,81.883,27.6663]
[1646996232728,48.28881063,81.951,81.883,27.6663]
[1646996232729,24.83,81.949,81.9,18.3015]
[1646996232927,24.83,81.949,81.901,22.8738]
[1646996234732,6.103,81.969,81.92,156.43503188]
[1646996235032,28.7731,81.972,81.92,145.08653188]
[1646996235235,22.6711,81.972,81.92,145.08653188]
[1646996235639,50.24590541,81.971,81.921,46.60458345]
[1646996236039,75.60718195,81.971,81.921,46.60458345]
[1646996236235,25.36127654,81.97,81.921,46.60458345]
[1646996236636,6.101,81.969,81.921,46.60458345]
[1646996237047,25.36127654,81.968,81.921,46.60458345]
[1646996237236,6.101,81.967,81.921,46.60458345]
[1646996237871,25.36127654,81.968,81.921,46.60458345]
[1646996238667,6.101,81.97,81.921,46.60458345]
[1646996240267,50.24590541,81.971,81.921,46.60458345]
[1646996242374,75.60718195,81.971,81.921,46.60458345]
[1646996243972,6.101,81.97,81.921,46.60458345]
[1646996246174,6.101,81.97,81.911,24.2686]
[1646996246175,25.36127654,81.969,81.911,24.2686]
[1646996246375,6.102,81.968,81.911,24.2686]
[1646996246776,25.36127654,81.967,81.911,24.2686]
[1646996246978,6.102,81.966,81.911,24.2686]
[1646996247276,6.102,81.966,81.912,59.53677808]
[1646996247678,6.102,81.97,81.92,18.2988]
[1646996252678,50.24590541,81.971,81.92,18.2988]
[1646996254184,75.60718195,81.971,81.912,59.53677808]
[1646996254384,17.56,81.97,81.912,59.53677808]
[1646996254785,42.92127654,81.97,81.912,59.53677808]
[1646996255386,17.56,81.97,81.912,59.53677808]
[1646996255589,50.24590541,81.971,81.912,59.53677808]
[1646996255786,50.24590541,81.971,81.912,66.90677808]
[1646996256486,50.24590541,81.971,81.94,18.294]
[1646996256688,50.24590541,81.971,81.941,28.83378322]
[1646996257590,24.3237,81.986,81.941,28.83378322]
[1646996258688,56.83719663,81.985,81.941,28.83378322]
[1646996258890,6.099,81.984,81.941,28.83378322]
[1646996261394,6.099,81.984,81.921,22.6818]
[1646996262393,6.099,81.984,81.922,63.33960685]
[1646996262994,31.46027654,81.984,81.922,63.33960685]
[1646996263199,31.46027654,81.984,81.93,18.2964]
[1646996263396,31.46027654,81.984,81.931,24.0394]
[1646996266202,27.01767868,81.983,81.931,24.0394]
[1646996266404,17.56,81.98,81.931,24.0394]
[1646996266608,6.099,81.979,81.9,107.04432397]
[1646996266804,31.40775654,81.979,81.901,22.8318]
[1646996267206,25.30875654,81.978,81.902,71.23946972]
[1646996267407,6.102,81.977,81.902,71.23946972]
[1646996267808,31.41075654,81.977,81.902,71.23946972]
[1646996268007,22.7241,81.976,81.902,71.23946972]
[1646996268207,6.102,81.975,81.91,18.3009]
[1646996268413,17.56,81.97,81.91,18.3009]
[1646996268608,6.102,81.969,81.91,18.3009]
[1646996269416,6.102,81.969,81.911,24.2839]
[1646996270019,17.56,81.97,81.912,6.102]
[1646996274144,6.101,81.969,81.912,6.102]
[1646996274846,6.101,81.969,81.92,18.2989]
[1646996275646,6.101,81.969,81.921,23.0253]
[1646996288062,17.56,81.97,81.921,23.0253]
[1646996289365,22.7241,81.976,81.931,23.23309158]
[1646996295872,25.30875654,81.975,81.931,23.23309158]
[1646996296274,6.101,81.974,81.921,23.0253]
[1646996297174,6.101,81.974,81.922,59.28446925]
[1646996297574,6.101,81.975,81.922,59.28446925]
[1646996298199,22.7241,81.976,81.922,59.28446925]
[1646996299699,25.30875654,81.975,81.922,59.28446925]
[1646996300405,25.30875654,81.975,81.931,0.153]
[1646996301807,6.101,81.974,81.931,0.153]
[1646996303605,17.56,81.97,81.931,0.153]
[1646996321622,6.101,81.974,81.931,0.153]
[1646996322923,25.33648987,81.973,81.931,0.153]
[1646996323123,17.56,81.97,81.931,0.153]
[1646996323323,128.201,81.969,81.931,0.153]
[1646996323526,147.43648987,81.969,81.931,0.153]
[1646996323722,25.33648987,81.968,81.931,0.153]
[1646996323923,122.1,81.967,81.931,0.153]
[1646996324322,122.1,81.965,81.931,0.153]
[1646996324723,147.43648987,81.964,81.931,0.153]
[1646996325222,122.1,81.962,81.931,0.153]
[1646996325426,17.56,81.96,81.931,0.153]
[1646996325626,128.201,81.959,81.931,0.003]
[1646996325825,145.29532326,81.959,81.931,0.003]
[1646996326030,122.1,81.957,81.931,0.003]
[1646996326227,6.101,81.956,81.931,0.003]
[1646996326427,122.1,81.955,81.931,0.003]
[1646996326627,122.1,81.939,81.931,0.003]
[1646996326826,6.102,81.938,81.931,0.003]
[1646996327026,31.43848987,81.938,81.931,0.003]
[1646996327231,122.1,81.937,81.931,0.003]
[1646996327427,6.102,81.936,81.931,0.003]
[1646996327631,122.1,81.935,81.931,0.003]
[1646996327937,6.102,81.934,81.931,0.003]
[1646996328131,31.43848987,81.934,81.931,0.003]
[1646996328632,25.33648987,81.933,81.931,0.003]
[1646996328829,6.102,81.932,81.931,0.003]
[1646996329329,153.53848987,81.932,81.931,0.003]
[1646996332434,153.53848987,81.932,81.86,18.3125]
[1646996332435,122.1,81.93,81.774,7.0]
[1646996332631,122.1,81.928,81.813,22.7178]
[1646996332832,122.1,81.919,81.813,22.7178]
[1646996333033,122.1,81.917,81.813,22.7178]
[1646996333231,122.1,81.915,81.813,22.7178]
[1646996333431,122.1,81.913,81.814,48.03102438]
[1646996333631,122.1,81.899,81.814,48.03102438]
[1646996333834,122.1,81.897,81.814,48.03102438]
[1646996334032,122.1,81.895,81.814,48.03102438]
[1646996334330,48.85537193,81.879,81.814,48.03102438]
[1646996334532,22.7869,81.878,81.814,48.03102438]
[1646996334932,22.7869,81.878,81.82,18.322]
[1646996343175,22.7869,81.878,81.83,18.32]
[1646996364732,22.7869,81.878,81.841,40.33953692]
[1646996370034,6.107,81.897,81.85,18.3151]
[1646996370236,23.2155,81.91,81.85,6.06]
[1646996370437,23.2155,81.91,81.851,22.5239]
[1646996371139,23.2155,81.91,81.852,3.04447957]
[1646996371337,23.2155,81.91,81.87,18.3099]
[1646996371537,23.2155,81.91,81.871,48.03102438]
[1646996377646,40.09377266,81.941,81.871,48.03102438]
[1646996377843,23.0008,81.94,81.872,23.8385]
[1646996378045,23.0008,81.94,81.872,31.6285]
[1646996378244,6.104,81.939,81.873,3.04447957]
[1646996378444,23.0008,81.94,81.873,3.04447957]
[1646996380347,23.0008,81.94,81.901,40.33953692]
[1646996382849,6.103,81.967,81.901,40.33953692]
[1646996383146,23.7094,81.966,81.91,18.3009]
[1646996383345,6.102,81.965,81.91,18.3009]
[1646996383945,62.70117193,81.961,81.91,18.3009]
[1646996384145,6.102,81.96,81.91,18.3009]
[1646996385556,29.07248987,81.96,81.902,23.4853]
[1646996390858,55.86613795,81.96,81.902,23.4853]
[1646996392279,122.1,81.959,81.867,18.1523]
[1646996392478,6.103,81.958,81.874,24.8638]
[1646996392679,122.1,81.957,81.874,24.8638]
[1646996392882,6.103,81.956,81.874,24.8638]
[1646996393079,6.103,81.956,81.875,59.12942368]
[1646996393279,122.1,81.954,81.875,59.12942368]
[1646996393582,17.56,81.94,81.875,59.12942368]
[1646996393779,30.268,81.939,81.875,59.12942368]
[1646996394079,30.268,81.939,81.88,18.308]
[1646996398083,30.268,81.939,81.875,59.12942368]
[1646996398284,53.23848987,81.939,81.874,24.8638]
[1646996398488,53.23848987,81.939,81.22,10.0]
[1646996398489,148.89364808,81.938,81.848,3.04447957]
[1646996398689,122.1,81.936,81.817,5.71398621]
[1646996398885,122.1,81.934,81.826,3.04447957]
[1646996399084,6.106,81.935,81.826,3.04447957]
[1646996399085,122.1,81.919,81.826,3.04447957]
[1646996399285,122.1,81.909,81.829,61.84072543]
[1646996399486,17.56,81.9,81.829,61.84072543]
[1646996399886,17.56,81.9,81.828,3.04447957]
[1646996400086,128.207,81.899,81.827,6.35299473]
[1646996400287,128.207,81.899,81.811,23.81910329]
[1646996400587,122.1,81.897,81.811,23.81910329]
[1646996400987,122.1,81.897,81.812,62.19781754]
[1646996401388,122.1,81.897,81.813,23.81910329]
[1646996402187,122.1,81.897,81.82,18.3213]
[1646996402688,122.1,81.895,81.82,18.3213]
[1646996402889,122.1,81.889,81.82,18.3213]
[1646996403087,122.1,81.887,81.82,18.3213]
[1646996403287,122.1,81.885,81.82,18.3213]
[1646996403488,122.1,81.883,81.82,18.3213]
[1646996403791,19.63078303,81.881,81.82,18.3213]
[1646996403988,6.107,81.88,81.82,18.3213]
[1646996406193,19.63078303,81.881,81.82,18.3213]
[1646996407097,19.63078303,81.881,81.813,23.81910329]
[1646996407294,19.63078303,81.881,81.821,3.04447957]
[1646996408096,19.63078303,81.881,81.84,18.3169]
[1646996408298,19.63078303,81.881,81.841,26.17274376]
[1646996408697,6.107,81.88,81.841,26.17274376]
[1646996411203,6.107,81.88,81.84,18.3169]
[1646996411401,6.107,81.88,81.84,17.90423841]
[1646996412100,6.107,81.887,81.823,22.5207]
[1646996412299,23.1974,81.888,81.84,61.0389]
[1646996412502,23.1974,81.888,81.84,66.4989]
[1646996413101,60.99564679,81.887,81.85,18.315]
[1646996416403,23.1974,81.888,81.85,18.315]
[1646996427638,29.3044,81.888,81.85,18.315]
[1646996428839,23.1974,81.888,81.85,18.315]
[1646996431341,23.1974,81.888,81.84,18.3172]
[1646996431541,23.1974,81.888,81.833,24.2643]
[1646996432145,6.107,81.887,81.833,24.2643]
[1646996435142,6.107,81.887,81.84,18.3173]
[1646996436744,6.107,81.887,81.85,18.3148]
[1646996437946,6.107,81.887,81.84,18.3172]
[1646996439350,6.107,81.909,81.86,18.3125]
[1646996439545,30.8641,81.914,81.86,5.7]
[1646996440148,60.17262597,81.913,81.86,5.7]
[1646996440347,6.106,81.912,81.89,18.3061]
[1646996440551,6.104,81.93,81.89,5.14]
[1646996441360,6.104,81.93,81.9,18.3041]
[1646996441557,51.29057487,81.929,81.891,46.81410162]
[1646996441758,51.29057487,81.929,81.89,5.14]
[1646996441959,51.29057487,81.929,81.863,23.2802]
[1646996442758,51.29057487,81.929,81.864,50.94264287]
[1646996443457,51.29057487,81.929,81.863,23.2802]
[1646996443658,6.105,81.928,81.863,23.2802]
[1646996444058,23.4114,81.927,81.863,23.2802]
[1646996444258,6.105,81.926,81.863,23.2802]
[1646996444461,29.07548987,81.926,81.863,23.2802]
[1646996444660,32.11996944,81.926,81.863,23.2802]
[1646996444859,26.01496944,81.925,81.863,23.2802]
[1646996445061,6.105,81.924,81.863,23.2802]
[1646996445261,107.9553862,81.9,81.86,18.313]
[1646996445660,107.9553862,81.9,81.84,61.04]
[1646996446261,24.86586381,81.899,81.84,61.04]
[1646996447264,24.86586381,81.899,81.85,18.3153]
[1646996451569,24.86586381,81.899,81.831,23.2424]
[1646996451803,23.2769,81.898,81.831,23.2424]
[1646996452004,6.107,81.897,81.831,23.2424]
[1646996454308,6.107,81.897,81.84,18.3174]
[1646996458610,122.1,81.896,81.84,18.3174]
[1646996458809,122.1,81.894,81.83,18.3198]
[1646996459009,122.1,81.892,81.83,18.3198]
[1646996459209,6.107,81.891,81.83,18.3198]
[1646996460912,6.107,81.897,81.83,18.3198]
[1646996462113,6.107,81.897,81.83,17.8198]
[1646996462316,6.107,81.897,81.84,18.3173]
[1646996462942,6.107,81.897,81.841,33.6073484]
[1646996463119,47.1998,81.898,81.841,33.6073484]
[1646996463317,47.1998,81.898,81.841,38.5273484]
[1646996464615,6.107,81.897,81.841,38.5273484]
[1646996464817,6.107,81.897,81.841,33.6073484]
[1646996465819,6.107,81.897,81.836,23.2011]
[1646996466217,6.107,81.897,81.84,18.3164]
[1646996466917,6.107,81.897,81.85,125.40068133]
[1646996467117,6.107,81.897,81.85,132.07068133]
[1646996468216,6.107,81.897,81.85,6.67]
[1646996468422,6.107,81.897,81.84,18.3177]
[1646996470019,6.107,81.897,81.837,50.11542235]
[1646996470219,6.107,81.897,81.85,18.3156]
[1646996470821,47.1998,81.898,81.85,18.3156]
[1646996471222,47.1998,81.898,81.837,50.11542235]
[1646996471223,6.106,81.897,81.84,18.3179]
[1646996473020,6.106,81.897,81.837,50.11542235]
[1646996473223,6.106,81.897,81.85,18.3154]
[1646996483630,6.106,81.897,81.84,117.20785085]
[1646996483833,6.106,81.897,81.836,23.2011]
[1646996486462,122.1,81.896,81.836,23.2011]
[1646996486762,122.1,81.894,81.836,23.2011]
[1646996486959,122.1,81.892,81.836,23.2011]
[1646996487160,6.107,81.891,81.836,23.2011]
[1646996487559,122.1,81.894,81.836,23.2011]
[1646996487761,122.1,81.892,81.836,23.2011]
[1646996487962,6.107,81.891,81.836,23.2011]
[1646996488965,6.107,81.896,81.836,23.2011]
[1646996489364,122.1,81.895,81.836,23.2011]
[1646996489567,122.1,81.893,81.836,23.2011]
[1646996489766,128.207,81.892,81.836,23.2011]
[1646996490265,6.107,81.892,81.836,23.2011]
[1646996490466,6.107,81.896,81.836,23.2011]
[1646996491574,6.107,81.897,81.836,23.2011]
[1646996492170,122.1,81.896,81.836,23.2011]
[1646996492368,6.107,81.895,81.836,23.2011]
[1646996492570,6.107,81.897,81.836,23.2011]
[1646996493969,6.107,81.897,81.84,18.3179]
[1646996494172,6.107,81.897,81.841,26.20151245]
[1646996494773,47.1998,81.898,81.841,26.20151245]
[1646996495173,122.1,81.897,81.841,26.20151245]
[1646996495374,47.1998,81.898,81.841,26.20151245]
[1646996495573,122.1,81.889,81.811,24.1117]
[1646996495773,122.1,81.887,81.812,23.9351]
[1646996495974,30.7239,81.888,81.812,23.9351]
[1646996495975,122.1,81.885,81.812,23.9351]
[1646996496174,122.1,81.883,81.813,14.47634995]
[1646996496475,122.1,81.883,81.814,58.33973419]
[1646996497074,128.207,81.882,81.82,18.3223]
[1646996497273,122.1,81.882,81.82,18.3223]
[1646996497873,6.107,81.887,81.82,18.3223]
[1646996498073,6.107,81.887,81.821,23.9351]
[1646996498272,122.1,81.886,81.821,23.9351]
[1646996498473,122.1,81.884,81.821,23.9351]
[1646996498674,6.107,81.883,81.821,23.9351]
[1646996498874,6.107,81.887,81.821,23.9351]
[1646996502177,122.1,81.886,81.821,23.9351]
[1646996502378,122.1,81.884,81.821,23.9351]
[1646996502577,122.1,81.882,81.821,23.9351]
[1646996502778,6.107,81.881,81.821,23.9351]
[1646996503778,6.107,81.887,81.821,23.9351]
[1646996504383,28.83870811,81.886,81.821,23.9351]
[1646996504580,6.107,81.885,81.821,23.9351]
[1646996504783,122.1,81.884,81.78,196.72742658]
[1646996504981,122.1,81.879,81.799,23.1353]
[1646996505180,122.1,81.877,81.799,37.62391116]
[1646996505380,122.1,81.875,81.799,37.62391116]
[1646996505580,122.1,81.873,81.8,14.48861116]
[1646996505780,122.1,81.871,81.801,60.78150637]
[1646996505981,122.1,81.871,81.81,18.3244]
[1646996506181,122.1,81.869,81.81,18.3244]
[1646996507082,122.1,81.87,81.81,18.3244]
[1646996507281,50.45311797,81.872,81.81,18.3244]
[1646996507282,122.1,81.868,81.81,18.3244]
[1646996508282,122.1,81.87,81.81,18.3244]
[1646996508482,6.109,81.869,81.81,18.3244]
[1646996509485,122.1,81.869,81.81,18.3244]
[1646996509687,122.1,81.867,81.81,18.3244]
[1646996510384,6.109,81.871,81.81,18.3244]
[1646996511186,122.1,81.87,81.81,18.3244]
[1646996511386,122.1,81.868,81.81,18.3244]
[1646996511588,122.1,81.866,81.81,18.3244]
[1646996511786,6.109,81.871,81.81,18.3244]
[1646996514088,122.1,81.87,81.81,18.3244]
[1646996514288,122.1,81.868,81.81,18.3244]
[1646996514493,122.1,81.866,81.81,18.3244]
[1646996514691,122.1,81.864,81.81,18.3244]
[1646996514888,24.01,81.865,81.81,18.3244]
[1646996517592,24.01,81.865,81.811,6.109]
[1646996518593,24.01,81.865,81.81,18.3244]
[1646996518793,24.01,81.865,81.811,6.109]
[1646996521015,24.01,81.865,81.811,28.7747]
[1646996521218,24.01,81.865,81.82,18.3224]
[1646996522916,24.01,81.865,81.812,6.109]
[1646996523318,122.1,81.864,81.812,6.109]
[1646996523720,24.01,81.865,81.812,6.109]
[1646996524224,6.109,81.864,81.791,6.109]
[1646996524423,122.1,81.863,81.793,22.9026]
[1646996524620,122.1,81.859,81.793,22.9026]
[1646996524826,122.1,81.857,81.793,22.9026]
[1646996525021,122.1,81.855,81.793,22.9026]
[1646996525320,122.1,81.853,81.793,22.9026]
[1646996525522,122.1,81.851,81.793,22.9026]
[1646996525720,122.1,81.849,81.793,22.9026]
[1646996526121,122.1,81.849,81.783,6.11]
[1646996526320,144.74080028,81.847,81.783,6.11]
[1646996526522,122.1,81.845,81.783,6.11]
[1646996526720,122.1,81.843,81.781,6.111]
[1646996526924,122.1,81.843,81.78,18.3303]
[1646996526925,122.1,81.841,81.78,18.3303]
[1646996527120,122.1,81.839,81.78,18.3303]
[1646996527323,6.111,81.838,81.78,18.3303]
[1646996527520,122.1,81.837,81.78,18.3303]
[1646996527722,122.1,81.835,81.78,18.3303]
[1646996527921,122.1,81.833,81.772,6.111]
[1646996528221,6.112,81.837,81.772,6.111]
[1646996528420,6.112,81.837,81.771,22.9026]
[1646996528421,122.1,81.836,81.761,6.37563725]
[1646996528621,6.112,81.837,81.761,6.37563725]
[1646996528622,3.04447957,81.832,81.761,6.37563725]
[1646996528821,17.56,81.82,81.761,6.37563725]
[1646996529022,128.213,81.819,81.756,6.113]
[1646996529225,122.1,81.817,81.756,6.113]
[1646996529422,122.1,81.815,81.756,6.113]
[1646996529622,122.1,81.813,81.756,6.113]
[1646996529826,6.113,81.812,81.756,6.113]
[1646996530023,6.113,81.815,81.756,6.113]
[1646996530226,6.113,81.815,81.76,18.3368]
[1646996531225,122.1,81.814,81.76,18.3368]
[1646996531429,6.113,81.813,81.76,18.3368]
[1646996531624,6.113,81.815,81.76,18.3368]
[1646996533623,122.1,81.814,81.76,18.3368]
[1646996533825,122.1,81.812,81.755,24.6273]
[1646996534024,17.56,81.81,81.755,24.6273]
[1646996534224,6.113,81.809,81.755,24.6273]
[1646996534831,24.309,81.808,81.755,24.6273]
[1646996535027,6.113,81.807,81.755,24.6273]
[1646996535635,105.0,81.806,81.75,18.3398]
[1646996535836,122.1,81.804,81.74,18.3419]
[1646996536040,17.56,81.8,81.735,6.113]
[1646996536242,17.56,81.8,81.735,65.67662162]
[1646996536543,17.56,81.8,81.735,6.113]
[1646996536736,20.60447957,81.8,81.734,6.114]
[1646996537137,20.60447957,81.8,81.76,18.3374]
[1646996537339,20.60447957,81.8,81.734,6.114]
[1646996537536,20.60447957,81.8,81.731,6.114]
[1646996537744,17.56,81.8,81.731,6.114]
[1646996538339,6.115,81.799,81.715,0.04387869]
[1646996538646,122.1,81.797,81.705,1.616027]
[1646996538845,6.115,81.796,81.722,6.36723519]
[1646996539043,122.1,81.795,81.722,6.36723519]
[1646996539249,122.1,81.795,81.705,1.616027]
[1646996539250,18.3481,81.79,81.705,1.616027]
[1646996539450,6.115,81.789,81.705,1.616027]
[1646996539647,17.56,81.78,81.705,1.616027]
[1646996539949,122.1,81.778,81.705,1.616027]